lending/lending_fUSD_20240130
["ID","MTS","AMOUNT","RATE_DAILY","PERIOD"]
[313024251,1706640647196,-500.0,0.00029676,2]
[313024252,1706640647205,-500.0,0.00029676,2]
[313024253,1706640647214,-500.0,0.00029676,2]
[313024254,1706640647224,-500.0,0.00029676,2]
[313024255,1706640647233,-500.0,0.00029676,2]
[313024256,1706640647242,-500.0,0.00029676,2]
[313024257,1706640647251,-500.0,0.00029676,2]
[313024258,1706640647260,-500.0,0.00029676,2]
[313024259,1706640647270,-500.0,0.00029676,2]
[313024260,1706640647280,-350.0,0.00029676,2]
[313024261,1706640647289,-500.0,0.00029676,2]
[313024262,1706640647298,-500.0,0.00029676,2]
[313024263,1706640647310,-500.0,0.00029676,2]
[313024264,1706640647320,-500.0,0.00029676,2]
[313024265,1706640647331,-500.0,0.00029676,2]
[313024266,1706640647341,-500.0,0.00029676,2]
[313024267,1706640647354,-500.0,0.00029676,2]
[313024268,1706640647363,-500.0,0.00029676,2]
[313024269,1706640647372,-500.0,0.00029676,2]
[313024270,1706640647382,-500.0,0.00029676,2]
[313024271,1706640647392,-500.0,0.00029676,2]
[313024272,1706640647401,-500.0,0.00029676,2]
[313024273,1706640647410,-500.0,0.00029676,2]
[313024274,1706640647419,-500.0,0.00029676,2]
[313024275,1706640647428,-500.0,0.00029676,2]
[313024276,1706640647438,-400.0,0.00029676,2]
[313024277,1706640647448,-500.0,0.00029676,2]
[313024278,1706640647458,-500.0,0.00029676,2]
[313024279,1706640647466,-500.0,0.00029676,2]
[313024280,1706640647475,-500.0,0.00029676,2]
[313024281,1706640647484,-500.0,0.00029676,2]
[313024282,1706640647493,-500.0,0.00029676,2]
[313024283,1706640647502,-500.0,0.00029676,2]
[313024284,1706640647511,-500.0,0.00029676,2]
[313024285,1706640647520,-500.0,0.00029676,2]
[313024286,1706640647529,-500.0,0.00029676,2]
[313024287,1706640647540,-500.0,0.00029676,2]
[313024288,1706640647705,-500.0,0.00029676,2]
[313024289,1706640647716,-500.0,0.00029676,2]
[313024290,1706640647726,-500.0,0.00029676,2]
[313024291,1706640647736,-500.0,0.00029676,2]
[313024292,1706640647746,-500.0,0.00029676,2]
[313024293,1706640647755,-500.0,0.00029676,2]
[313024294,1706640647764,-500.0,0.00029676,2]
[313024295,1706640647774,-500.0,0.00029676,2]
[313024296,1706640647784,-500.0,0.00029676,2]
[313024297,1706640647793,-500.0,0.00029676,2]
[313024298,1706640647802,-500.0,0.00029676,2]
[313024299,1706640647811,-500.0,0.00029676,2]
[313024300,1706640647821,-500.0,0.00029676,2]
[313024301,1706640647830,-500.0,0.00029676,2]
[313024302,1706640647839,-500.0,0.00029676,2]
[313024303,1706640647848,-500.0,0.00029676,2]
[313024304,1706640647858,-500.0,0.00029676,2]
[313024305,1706640647867,-500.0,0.00029676,2]
[313024306,1706640647876,-500.0,0.00029676,2]
[313024307,1706640647885,-500.0,0.00029676,2]
[313024308,1706640647895,-500.0,0.00029676,2]
[313024309,1706640647904,-500.0,0.00029676,2]
[313024310,1706640647914,-500.0,0.00029676,2]
[313024311,1706640647923,-500.0,0.00029676,2]
[313024312,1706640647933,-500.0,0.00029676,2]
[313024313,1706640647942,-500.0,0.00029676,2]
[313024314,1706640647951,-500.0,0.00029676,2]
[313024315,1706640647960,-500.0,0.00029676,2]
[313024316,1706640647970,-500.0,0.00029676,2]
[313024317,1706640647979,-500.0,0.00029676,2]
[313024318,1706640647989,-500.0,0.00029676,2]
[313024319,1706640647999,-500.0,0.00029676,2]
[313024320,1706640648008,-500.0,0.00029676,2]
[313024321,1706640648017,-500.0,0.00029676,2]
[313024322,1706640648027,-500.0,0.00029676,2]
[313024323,1706640648038,-500.0,0.00029676,2]
[313024324,1706640648047,-500.0,0.00029676,2]
[313024325,1706640648057,-500.0,0.00029676,2]
[313024326,1706640648066,-500.0,0.00029676,2]
[313024327,1706640648075,-500.0,0.00029676,2]
[313024328,1706640648084,-500.0,0.00029676,2]
[313024329,1706640648093,-500.0,0.00029676,2]
[313024330,1706640648103,-500.0,0.00029676,2]
[313024331,1706640648113,-500.0,0.00029676,2]
[313024332,1706640648121,-500.0,0.00029676,2]
[313024333,1706640648131,-500.0,0.00029676,2]
[313024334,1706640648141,-500.0,0.00029676,2]
[313024335,1706640648150,-500.0,0.00029676,2]
[313024336,1706640648159,-500.0,0.00029676,2]
[313024337,1706640648168,-500.0,0.00029676,2]
[313024338,1706640648177,-500.0,0.00029676,2]
[313024339,1706640648186,-500.0,0.00029676,2]
[313024340,1706640648195,-500.0,0.00029676,2]
[313024341,1706640648204,-500.0,0.00029676,2]
[313024342,1706640648213,-500.0,0.00029676,2]
[313024343,1706640648223,-500.0,0.00029676,2]
[313024344,1706640648232,-500.0,0.00029676,2]
[313024345,1706640648241,-500.0,0.00029676,2]
[313024346,1706640648249,-500.0,0.00029676,2]
[313024347,1706640648258,-500.0,0.00029676,2]
[313024348,1706640648267,-500.0,0.00029676,2]
[313024349,1706640648277,-500.0,0.00029676,2]
[313024350,1706640648287,-500.0,0.00029676,2]
[313024351,1706640648297,-500.0,0.00029676,2]
[313024352,1706640648306,-500.0,0.00029676,2]
[313024353,1706640648315,-500.0,0.00029676,2]
[313024354,1706640648324,-500.0,0.00029676,2]
[313024355,1706640648334,-500.0,0.00029676,2]
[313024356,1706640648345,-500.0,0.00029676,2]
[313024357,1706640648355,-500.0,0.00029676,2]
[313024358,1706640648364,-500.0,0.00029676,2]
[313024359,1706640648373,-500.0,0.00029676,2]
[313024360,1706640648383,-500.0,0.00029676,2]
[313024361,1706640648392,-500.0,0.00029676,2]
[313024362,1706640648401,-500.0,0.00029676,2]
[313024363,1706640648410,-500.0,0.00029676,2]
[313024364,1706640648421,-500.0,0.00029676,2]
[313024365,1706640648431,-500.0,0.00029676,2]
[313024366,1706640648440,-500.0,0.00029676,2]
[313024367,1706640648449,-500.0,0.00029676,2]
[313024368,1706640648458,-500.0,0.00029676,2]
[313024369,1706640648468,-500.0,0.00029676,2]
[313024370,1706640648478,-500.0,0.00029676,2]
[313024371,1706640648487,-500.0,0.00029676,2]
[313024372,1706640648497,-500.0,0.00029676,2]
[313024373,1706640648506,-500.0,0.00029676,2]
[313024374,1706640648515,-5000.0,0.00029676,2]
[313024375,1706640648525,-306.72,0.00029695,2]
[313024376,1706640648536,-153.43601468,0.00029768,2]
[313024377,1706640648545,-1457.4,0.00029777,2]
[313024378,1706640648555,-176.65475473,0.000298,2]
[313024379,1706640648565,-492.46,0.00029845,2]
[313024380,1706640648574,-1000.0,0.000299,10]
[313024381,1706640648583,-930.00271638,0.000299,2]
[313024382,1706640648593,-42857.1289685,0.00029979,2]
[313024383,1706640648602,-2349.4061091,0.00029979,2]
[313024384,1706640648612,-4120.9676368,0.00029979,2]
[313024385,1706640648621,-163.33902123,0.0002999,2]
[313024386,1706640648630,-1457.4,0.00029993,2]
[313024387,1706640648640,-392.66407141,0.00029999,15]
[313024388,1706640648650,-4539.07975841,0.0003,4]
[313024389,1706640648660,-5040.43276011,0.0003,2]
[313024390,1706640648670,-155.0,0.0003,2]
[313024391,1706640648679,-201.57807694,0.0003,4]
[313024392,1706640648689,-195017.14582948,0.0003,2]
[313024393,1706640648698,-13046.07503937,0.0003,4]
[313024394,1706640648707,-908.21727599,0.0003,4]
[313024395,1706640648717,-8858.8625671,0.0003,4]
[313024396,1706640648726,-155.97805458,0.0003,4]
[313024397,1706640648736,-19149.32209958,0.0003,4]
[313024398,1706640648745,-155.60182873,0.0003,4]
[313024399,1706640648755,-164.67571783,0.0003,4]
[313024400,1706640648764,-485.06712712,0.0003,4]
[313024401,1706640648773,-157.63170147,0.0003,4]
[313024402,1706640648783,-157.67070134,0.0003,4]
[313024403,1706640648792,-241.59265146,0.0003,4]
[313024404,1706640648801,-157.85687789,0.0003,4]
[313024405,1706640648810,-813.21033884,0.0003,4]
[313024406,1706640648819,-332.22197447,0.0003,4]
[313024407,1706640648828,-583.57613341,0.0003,2]
[313024408,1706640648838,-9690.30416028,0.0003,2]
[313024409,1706640648847,-692.06285158,0.0003,2]
[313024410,1706640648856,-380.16366722,0.0003,2]
[313024411,1706640648866,-194.9001721,0.0003,4]
[313024412,1706640648876,-1817.40051988,0.0003,4]
[313024413,1706640648886,-69444.33603035,0.0003,4]
[313024414,1706640648895,-908.25234,0.0003,2]
[313024415,1706640648904,-3000.0,0.0003,2]
[313024416,1706640648913,-1304.7016096,0.0003,2]
[313024417,1706640648923,-1000.0,0.0003,2]
[313024418,1706640648932,-3000.0,0.0003001,2]
[313024419,1706640648941,-3000.0,0.0003002,2]
[313024420,1706640648951,-3000.0,0.0003003,2]
[313024421,1706640648960,-3000.0,0.0003004,2]
[313024422,1706640648970,-3000.0,0.0003005,2]
[313024423,1706640648980,-3000.0,0.0003006,2]
[313024424,1706640648989,-3000.0,0.0003007,2]
[313024425,1706640648998,-3000.0,0.0003008,2]
[313024426,1706640649008,-3000.0,0.0003009,2]
[313024427,1706640649017,-3000.0,0.000301,2]
[313024428,1706640649027,-3000.0,0.0003011,2]
[313024429,1706640649038,-3000.0,0.0003012,2]
[313024430,1706640649047,-3000.0,0.0003013,2]
[313024431,1706640649056,-157.09,0.00030137,2]
[313024432,1706640649065,-200.0,0.00030137,2]
[313024433,1706640649074,-155.0,0.00030137,2]
[313024434,1706640649083,-3000.0,0.0003014,2]
[313024435,1706640649092,-3000.0,0.0003015,2]
[313024436,1706640649101,-3000.0,0.0003016,2]
[313024437,1706640649110,-3000.0,0.0003017,2]
[313024438,1706640649120,-3000.0,0.0003018,2]
[313024439,1706640649129,-3000.0,0.0003019,2]
[313024440,1706640649137,-3000.0,0.000302,2]
[313024441,1706640649147,-1457.4,0.00030209,2]
[313024442,1706640649156,-3000.0,0.0003021,2]
[313024443,1706640649164,-3000.0,0.0003022,2]
[313024444,1706640649174,-3000.0,0.0003023,2]
[313024445,1706640649183,-3000.0,0.0003024,2]
[313024446,1706640649191,-3000.0,0.0003025,2]
[313024447,1706640649201,-3000.0,0.0003026,2]
[313024448,1706640649210,-3000.0,0.0003027,2]
[313024449,1706640649219,-3000.0,0.0003028,2]
[313024450,1706640649228,-3000.0,0.0003029,2]
[313024451,1706640649237,-500.0,0.00030299,2]
[313024452,1706640649246,-3000.0,0.000303,2]
[313024453,1706640649255,-4937.567522,0.0003031,2]
[313024454,1706640649265,-1457.4,0.00030425,2]
[313024455,1706640649274,-1457.4,0.00030642,2]
[313024456,1706640649283,-3108.05740865,0.00030743,2]
[313024457,1706640649292,-1457.4,0.00030858,2]
[313024458,1706640649302,-823.53673708,0.00030906,5]
[313024459,1706640649311,-1000.0,0.00030967,2]
[313024460,1706640649320,-156.77346571,0.00031,4]
[313024461,1706640649329,-1400.0,0.00031,3]
[313024462,1706640649338,-1304.7016096,0.00031,2]
[313024463,1706640649352,-1457.4,0.00031074,2]
[313024464,1706640649361,-735.23,0.00031089,2]
[313024465,1706640649370,-829.0,0.00031134,2]
[313024466,1706640649379,-949.0,0.00031134,2]
[313024467,1706640649389,-210.0,0.00031134,2]
[313024468,1706640649398,-542.107,0.00031134,2]
[313024469,1706640649407,-2256.788,0.00031134,2]
[313024470,1706640649417,-19763.0,0.00031134,2]
[313024471,1706640649427,-1033.0,0.00031134,2]
[313024472,1706640649437,-1457.4,0.00031291,2]
[313024473,1706640649446,-492.46,0.00031489,2]
[313024474,1706640649455,-1457.4,0.00031507,2]
[313024475,1706640649464,-155.0,0.00031507,2]
[313024476,1706640649473,-180.0,0.00031644,2]
[313024477,1706640649483,-157.09,0.00031703,2]
[313024478,1706640649492,-152.63703886,0.00031713,2]
[313024479,1706640649501,-43983.2600806,0.00031756,2]
[313024480,1706640649510,-2411.1400465,0.00031756,2]
[313024481,1706640649519,-4229.2518355,0.00031778,2]
[313024482,1706640649528,-306.43633601,0.00031797,2]
[313024483,1706640649538,-19171.52536403,0.000318,4]
[313024484,1706640649548,-232859.715159,0.000318,3]
[313024485,1706640649557,-1032.796137,0.000318,7]
[313024486,1706640649566,-3108.05740865,0.00031888,3]
[313024487,1706640649576,-306.72,0.00031959,2]
[313024488,1706640649585,-155.0,0.00032,2]
[313024489,1706640649594,-13115.55561982,0.00032,4]
[313024490,1706640649604,-10000.0,0.00032,2]
[313024491,1706640649613,-157.04291009,0.00032,4]
[313024492,1706640649622,-1304.7016096,0.00032,2]
[313024493,1706640649631,-500.0,0.00032123,2]
[313024494,1706640649639,-153.43601468,0.00032227,2]
[313024495,1706640649649,-823.53673708,0.00032705,6]
[313024496,1706640649658,-206.0,0.0003272,17]
[313024497,1706640649667,-5242.2288499,0.0003278,5]
[313024498,1706640649677,-500.0,0.00032877,2]
[313024499,1706640649686,-500.0,0.00032877,2]
[313024500,1706640649695,-366.74812054,0.00032877,2]
[313024501,1706640649704,-155.0,0.00032877,2]
[313024502,1706640649713,-11189.29707595,0.00033,2]
[313024503,1706640649723,-2000.0,0.00033,5]
[313024504,1706640649732,-1450.0,0.00033,3]
[313024505,1706640649742,-1304.7016096,0.00033,2]
[313024506,1706640649752,-3108.05740865,0.00033032,5]
[313024507,1706640649762,-150.0,0.00033089,2]
[313024508,1706640649771,-492.46,0.00033133,2]
[313024509,1706640649780,-164.25,0.0003314,2]
[313024510,1706640649790,-157.09,0.00033268,2]
[313024511,1706640649799,-450.763,0.00033482,7]
[313024512,1706640649808,-500.0,0.00033946,2]
[313024513,1706640649817,-641.21500768,0.00034,10]
[313024514,1706640649826,-636.15843273,0.00034,4]
[313024515,1706640649835,-500.0,0.00034,7]
[313024516,1706640649844,-1304.7016096,0.00034,2]
[313024517,1706640649854,-1000.0,0.00034063,2]
[313024518,1706640649863,-150.0,0.00034089,2]
[313024519,1706640649872,-936.0,0.00034134,2]
[313024520,1706640649882,-210.0,0.00034134,2]
[313024521,1706640649891,-16515.338,0.00034134,2]
[313024522,1706640649900,-1033.0,0.00034134,2]
[313024523,1706640649909,-3108.05740865,0.00034177,6]
[313024524,1706640649918,-306.72,0.00034223,2]
[313024525,1706640649927,-155.0,0.00034247,2]
[313024526,1706640649936,-823.53673708,0.00034504,7]
[313024527,1706640649946,-153.43601468,0.00034686,2]
[313024528,1706640649956,-7857.10452189,0.000347,2]
[313024529,1706640649965,-1188.86,0.000348,2]
[313024530,1706640649974,-1188.86,0.000348,2]
[313024531,1706640649983,-1188.86,0.000348,2]
[313024532,1706640649992,-1188.86,0.000348,2]
[313024533,1706640650002,-1188.86,0.000348,2]
[313024534,1706640650011,-1188.86,0.000348,2]
[313024535,1706640650021,-1188.86,0.000348,2]
[313024536,1706640650030,-1188.86,0.000348,2]
[313024537,1706640650042,-1188.86,0.000348,2]
[313024538,1706640650051,-1188.86,0.000348,2]
[313024539,1706640650061,-1188.86,0.000348,2]
[313024540,1706640650070,-1188.86,0.000348,2]
[313024541,1706640650080,-1188.86,0.000348,2]
[313024542,1706640650089,-1188.86,0.000348,2]
[313024543,1706640650098,-1188.86,0.000348,2]
[313024544,1706640650107,-1188.86,0.000348,2]
[313024545,1706640650117,-1188.86,0.000348,2]
[313024546,1706640650126,-1188.86,0.000348,2]
[313024547,1706640650135,-1188.86,0.000348,2]
[313024548,1706640650144,-1188.86,0.000348,2]
[313024549,1706640650154,-155.77,0.000348,2]
[313024550,1706640650162,-155.77,0.000348,2]
[313024551,1706640650171,-157.09,0.00034834,2]
[313024552,1706640650181,-500.0,0.000349,10]
[313024553,1706640650190,-930.00271637,0.000349,2]
[313024554,1706640650199,-954.40004814,0.00035,14]
[313024555,1706640650208,-763.42785941,0.00035,4]
[313024556,1706640650218,-15776.97113927,0.00035,7]
[313024557,1706640650227,-1500.0,0.00035,3]
[313024558,1706640650236,-299.43223406,0.00035,2]
[313024559,1706640650246,-500.0,0.00035,7]
[313024560,1706640650255,-19828.3407152,0.00035,2]
[313024561,1706640650264,-908.25235,0.00035,2]
[313024562,1706640650273,-3000.0,0.00035,11]
[313024563,1706640650283,-380.183804,0.00035,2]
[313024564,1706640650294,-194.25003441,0.00035,2]
[313024565,1706640650304,-161.20788548,0.00035,2]
[313024566,1706640650313,-161.20788548,0.00035,2]
[313024567,1706640650323,-161.20788548,0.00035,2]
[313024568,1706640650332,-161.20788548,0.00035,2]
[313024569,1706640650342,-161.20788548,0.00035,2]
[313024570,1706640650355,-161.20788548,0.00035,2]
[313024571,1706640650364,-161.20788548,0.00035,2]
[313024572,1706640650513,-161.20788548,0.00035,2]
[313024573,1706640650522,-161.20788548,0.00035,2]
[313024574,1706640650532,-161.20788548,0.00035,2]
[313024575,1706640650543,-161.20788548,0.00035,2]
[313024576,1706640650553,-161.20788548,0.00035,2]
[313024577,1706640650562,-161.20788548,0.00035,2]
[313024578,1706640650571,-161.20788548,0.00035,2]
[313024579,1706640650581,-161.20788548,0.00035,2]
[313024580,1706640650590,-161.20788548,0.00035,2]
[313024581,1706640650599,-161.20788548,0.00035,2]
[313024582,1706640650608,-161.20788548,0.00035,2]
[313024583,1706640650618,-161.20788548,0.00035,2]
[313024584,1706640650627,-161.20788548,0.00035,2]
[313024585,1706640650636,-161.20788548,0.00035,2]
[313024586,1706640650645,-161.20788548,0.00035,2]
[313024587,1706640650655,-161.20788548,0.00035,2]
[313024588,1706640650664,-161.20788548,0.00035,2]
[313024589,1706640650673,-161.20788548,0.00035,2]
[313024590,1706640650682,-161.20788548,0.00035,2]
[313024591,1706640650691,-161.20788548,0.00035,2]
[313024592,1706640650700,-161.20788548,0.00035,2]
[313024593,1706640650709,-161.20788548,0.00035,2]
[313024594,1706640650718,-161.20788548,0.00035,2]
[313024595,1706640650727,-161.20788548,0.00035,2]
[313024596,1706640650736,-161.20788548,0.00035,2]
[313024597,1706640650746,-161.20788548,0.00035,2]
[313024598,1706640650755,-161.20788548,0.00035,2]
[313024599,1706640650764,-161.20788548,0.00035,2]
[313024600,1706640650773,-161.20788548,0.00035,2]
[313024601,1706640650783,-161.20788548,0.00035,2]
[313024602,1706640650793,-161.20788548,0.00035,2]
[313024603,1706640650802,-161.20788548,0.00035,2]
[313024604,1706640650811,-161.20788548,0.00035,2]
[313024605,1706640650820,-161.20788548,0.00035,2]
[313024606,1706640650829,-161.20788548,0.00035,2]
[313024607,1706640650839,-161.20788548,0.00035,2]
[313024608,1706640650849,-161.20788548,0.00035,2]
[313024609,1706640650858,-161.20788548,0.00035,2]
[313024610,1706640650867,-161.20788548,0.00035,2]
[313024611,1706640650876,-161.20788548,0.00035,2]
[313024612,1706640650886,-161.20788548,0.00035,2]
[313024613,1706640650895,-161.20788548,0.00035,2]
[313024614,1706640650905,-161.20788548,0.00035,2]
[313024615,1706640650915,-3000.0,0.0003501,11]
[313024616,1706640650924,-5522.066767,0.0003502,11]
[313024617,1706640650933,-150.0,0.00035089,2]
[313024618,1706640650943,-29032.09902957,0.0003509,2]
[313024619,1706640650953,-3108.05740865,0.00035321,7]
[313024620,1706640650962,-150.0,0.00035616,2]
[313024621,1706640650971,-300.0,0.00035616,7]
[313024622,1706640650980,-450.0,0.00035616,12]
[313024623,1706640650990,-600.0,0.00035616,17]
[313024624,1706640651000,-2628.85,0.00035616,2]
[313024625,1706640651009,-155.0,0.00035617,2]
[313024626,1706640651018,-500.0,0.00035769,2]
[313024627,1706640651027,-150.83351106,0.0003591,5]
[313024628,1706640651037,-8632.75,0.00035964,2]
[313024629,1706640651046,-20839.09108927,0.00036,4]
[313024630,1706640651056,-150.0,0.00036089,2]
[313024631,1706640651065,-780.06,0.000361,7]
[313024632,1706640651075,-206.0,0.0003613,23]
[313024633,1706640651084,-1776.45,0.00036278,5]
[313024634,1706640651093,-823.53673708,0.00036303,7]
[313024635,1706640651102,-157.09,0.00036399,2]
[313024636,1706640651111,-388.64,0.00036438,2]
[313024637,1706640651121,-3108.05740865,0.00036466,9]
[313024638,1706640651130,-306.72,0.00036487,2]
[313024639,1706640651139,-1316.98848053,0.0003668,30]
[313024640,1706640651148,-7857.1,0.000367,3]
[313024641,1706640651157,-10398.32020682,0.00036875,2]
[313024652,1706641074278,227.64,0.00021679,2]
[313024653,1706641314685,854.1567833,0.00021679,2]
[313024654,1706641464797,191.81,0.00018175,2]
[313024655,1706641496490,250.0,0.00022437,2]
[313024657,1706641506104,333.19,0.00022493,2]
[313024658,1706641512448,23890.0,0.00022493,2]
[313024661,1706641585626,233.21,0.0002068,2]
[313024662,1706641712876,618.84762438,0.0002242,2]
[313024663,1706641812968,169.05,0.00022411,2]
[313024664,1706641830284,189.47,0.00022411,10]
[313024693,1706641831704,-419.13902718,0.00022516,2]
[313024695,1706641831714,-310.87097282,0.00022517,2]
[313024698,1706641831725,-689.12902718,0.00022517,2]
[313024700,1706641831735,-134.87097282,0.00022518,2]
[313024704,1706641831768,-115.12902718,0.00022518,2]
[313024706,1706641831777,-153.96,0.00022567,2]
[313024708,1706641831786,-200.0,0.00022623,2]
[313024710,1706641831795,-157.24861061,0.00022668,2]
[313024712,1706641831805,-200.0,0.00022719,2]
[313024714,1706641831815,-150.0,0.00022768,2]
[313024716,1706641831824,-300.0,0.00022768,2]
[313024718,1706641831834,-150.0,0.00022768,2]
[313024720,1706641831843,-27012.39448358,0.00022769,2]
[313024722,1706641831852,-341.87083974,0.00022769,2]
[313024724,1706641831861,-686.62,0.0002277,2]
[313024726,1706641831870,-714.71,0.00022799,2]
[313024729,1706641831889,-25326.2341614,0.00022799,2]
[313024731,1706641831903,-318.01504645,0.00022799,2]
[313024734,1706641831915,-544.127513,0.00022799,2]
[313024736,1706641831929,-543.83,0.00022799,2]
[313024744,1706641831963,-59020.0574222,0.00022799,2]
[313024785,1706641836544,2000.0,0.00022401,2]
[313024787,1706641837771,-17656.34195695,0.00022799,2]
[313024788,1706641837781,-150.99,0.00022799,2]
[313024789,1706641837790,-2234.4,0.00022799,2]
[313024790,1706641837800,-171.7777838,0.00022898,2]
[313024791,1706641837809,-414.68432554,0.00022898,2]
[313024792,1706641837820,-16582.6866837,0.00022898,2]
[313024793,1706641837878,-1088.16047109,0.00022898,2]
[313024847,1706641840155,-473.04997849,0.00022898,2]
[313024848,1706641840167,-587.4769397,0.00022898,2]
[313024849,1706641840182,-368.04046622,0.00022898,2]
[313024850,1706641840193,-300.0,0.00022898,2]
[313024851,1706641840205,-778.79529046,0.00022898,2]
[313024852,1706641840217,-1572.2859,0.00022898,2]
[313024853,1706641840232,-1535.56626615,0.00022898,2]
[313024854,1706641840243,-1120.0285415,0.00022898,2]
[313024855,1706641840255,-1101.81629143,0.00022898,2]
[313024856,1706641840267,-581.08997988,0.00022898,2]
[313024857,1706641840278,-5179.83913425,0.00022898,2]
[313024858,1706641840287,-34665.3718,0.00022899,2]
[313024859,1706641840296,-1577.51387187,0.00022899,2]
[313024860,1706641840308,-546.04999995,0.00022899,2]
[313024861,1706641840319,-2682.77612818,0.00022899,2]
[313024862,1706641840328,-979.08663938,0.000229,2]
[313024863,1706641840338,-154.0302551,0.000229,2]
[313024864,1706641840347,-598.9237552,0.000229,2]
[313024865,1706641840356,-289.37322214,0.000229,2]
[313024866,1706641840367,-728.01,0.000229,2]
[313024867,1706641840383,-553.27,0.000229,2]
[313024868,1706641840888,-163.9240156,0.000229,2]
[313024869,1706641840898,-13671.29361683,0.000229,2]
[313024870,1706641840908,-170.15365364,0.000229,2]
[313024871,1706641840918,-268.17204436,0.000229,6]
[313024872,1706641840927,-473.97923335,0.000229,2]
[313024873,1706641840936,-233.21,0.00022944,2]
[313024874,1706641840945,-165.82,0.00022958,2]
[313024875,1706641840954,-500.0,0.00022992,2]
[313024876,1706641840964,-1122.67821581,0.00022998,2]
[313024877,1706641840973,-207.15952483,0.00022998,2]
[313024878,1706641840982,-242.98263032,0.00022998,2]
[313024879,1706641840991,-162.54625844,0.00022998,2]
[313024880,1706641841000,-292.70291374,0.00022998,2]
[313024881,1706641841010,-1234.22666792,0.00022998,2]
[313024882,1706641841019,-383.55337312,0.00022998,2]
[313024883,1706641841028,-931.95145673,0.00022998,2]
[313024884,1706641841038,-1419.37423398,0.00022998,2]
[313024885,1706641841047,-489.16849662,0.00022998,2]
[313024886,1706641841056,-385.22548142,0.00022999,2]
[313024887,1706641841066,-1438.18590972,0.00022999,2]
[313024888,1706641841075,-304.24936636,0.00022999,2]
[313024889,1706641841084,-2094.19739999,0.00022999,2]
[313024890,1706641841093,-155.52742427,0.00022999,2]
[313024891,1706641841103,-1133.44014387,0.00022999,2]
[313024892,1706641841112,-337.02583242,0.00022999,2]
[313024893,1706641841122,-196.89353591,0.00022999,2]
[313024894,1706641841131,-361.12767209,0.00022999,2]
[313024895,1706641841140,-500.0,0.00022999,2]
[313024896,1706641841149,-436.01779618,0.00022999,2]
[313024897,1706641841158,-500.0,0.00022999,2]
[313024898,1706641841168,-500.0,0.00022999,2]
[313024899,1706641841178,-500.0,0.00022999,2]
[313024900,1706641841187,-500.0,0.00022999,2]
[313024901,1706641841196,-519.90046958,0.00022999,2]
[313024902,1706641841205,-500.0,0.00022999,2]
[313024903,1706641841215,-387.25589056,0.00022999,2]
[313024904,1706641841225,-270.22618409,0.00022999,2]
[313024905,1706641841234,-500.0,0.00022999,2]
[313024906,1706641841243,-500.0,0.00022999,2]
[313024907,1706641841252,-500.0,0.00022999,2]
[313024908,1706641841261,-500.0,0.00022999,2]
[313024909,1706641841272,-500.0,0.00022999,2]
[313024910,1706641841281,-500.0,0.00022999,2]
[313024911,1706641841291,-500.0,0.00022999,2]
[313024912,1706641841300,-500.0,0.00022999,2]
[313024913,1706641841309,-500.0,0.00022999,2]
[313024914,1706641841319,-500.0,0.00022999,2]
[313024915,1706641841328,-500.0,0.00022999,2]
[313024916,1706641841337,-500.0,0.00022999,2]